bitfinex-derivatives/quotes_SOLF0:USTF0_20250507
["timestamp","ask_amount","ask_price","bid_price","bid_amount"]
[1746624042322,11.04927052,146.6,146.59,28.92]
[1746624043022,4.22767052,146.6,146.59,35.742]
[1746624043225,4.22767052,146.6,146.59,28.92]
[1746624044019,4.22767052,146.6,146.59,35.742]
[1746624044525,4.23095713,146.6,146.59,35.742]
[1746624046226,4.23106439,146.6,146.59,35.742]
[1746624049826,14.09026152,146.64,146.61,6.8209]
[1746624050025,4.23464599,146.63,146.61,6.8209]
[1746624050326,4.23464599,146.62,146.61,6.8209]
[1746624051024,4.23496825,146.62,146.61,6.8209]
[1746624055329,2.1713,146.65,146.63,6.8199]
[1746624055534,4.23657079,146.64,146.63,6.8199]
[1746624056131,4.23657079,146.64,146.62,6.8204]
[1746624056331,4.23657079,146.63,146.62,6.8204]
[1746624057034,8.9906,146.65,146.63,6.8201]
[1746624057334,4.23778476,146.64,146.63,6.8201]
[1746624057728,4.23778476,146.64,146.62,6.8204]
[1746624057929,4.23778476,146.63,146.6,7.27036152]
[1746624058128,4.23778476,146.62,146.6,7.27036152]
[1746624058330,4.23778476,146.61,146.6,14.09196152]
[1746624058835,6.8195,146.65,146.63,6.82]
[1746624059036,4.2362406,146.64,146.63,6.82]
[1746624060235,11.0559406,146.64,146.62,6.8204]
[1746624060435,4.2362406,146.63,146.62,6.8204]
[1746624060838,11.0564406,146.63,146.61,6.8209]
[1746624061044,4.2362406,146.62,146.61,6.8209]
[1746624062037,4.23681615,146.62,146.61,6.8209]
[1746624062942,4.23681615,146.62,146.59,28.92]
[1746624063142,4.23681615,146.61,146.59,28.92]
[1746624063448,4.23681615,146.6,146.59,28.92]
[1746624063748,4.23681615,146.6,146.59,35.742]
[1746624064951,4.23681615,146.6,146.59,28.92]
[1746624065543,4.26558949,146.6,146.59,28.92]
[1746624065744,6.8214,146.61,146.59,28.92]
[1746624065944,4.26554783,146.6,146.59,28.92]
[1746624066144,6.8214,146.61,146.59,28.92]
[1746624066446,4.26558137,146.6,146.58,6.8224]
[1746624066649,4.26558137,146.59,146.57,6.8227]
[1746624066845,4.26558137,146.58,146.57,6.8227]
[1746624067046,7.27036152,146.62,146.57,6.8227]
[1746624067248,7.27036152,146.6,146.56,28.92]
[1746624067448,11.53165011,146.58,146.56,28.92]
[1746624067648,7.27036152,146.58,146.53,104.22443088]
[1746624068053,6.8232,146.57,146.54,6.8241]
[1746624068256,4.25975196,146.56,146.54,6.8241]
[1746624068450,4.25975196,146.55,146.53,111.04903088]
[1746624068651,4.25975196,146.54,146.53,111.04903088]
[1746624069848,6.823,146.57,146.54,6.8241]
[1746624070048,4.27031213,146.56,146.54,6.8241]
[1746624070253,4.27031213,146.55,146.54,6.8244]
[1746624070453,4.27031213,146.55,146.53,28.92]
[1746624070751,4.27031213,146.54,146.5,36.19036152]
[1746624070950,4.27031213,146.53,146.52,6.8251]
[1746624071154,4.27031213,146.53,146.5,28.92]
[1746624071353,7.27036152,146.56,146.5,28.92]
[1746624071354,4.27031213,146.52,146.5,28.92]
[1746624071552,4.27031213,146.51,146.5,35.7462]
[1746624072258,6.8246,146.54,146.52,6.8253]
[1746624072460,4.2702256,146.53,146.52,6.8253]
[1746624073656,4.2702256,146.53,146.47,28.92]
[1746624073859,11.54058712,146.52,146.47,28.92]
[1746624074057,4.27174105,146.51,146.49,6.8263]
[1746624074258,4.27174105,146.5,146.49,6.8263]
[1746624074459,4.27174105,146.5,146.48,7.27036152]
[1746624074659,9.25346152,146.54,146.48,7.27036152]
[1746624074858,4.26923665,146.53,146.5,7.27036152]
[1746624075061,4.26923665,146.52,146.5,7.27036152]
[1746624075358,6.8242,146.55,146.5,7.27036152]
[1746624075559,4.26774179,146.54,146.5,7.27036152]
[1746624075862,4.26774179,146.53,146.48,17.51207742]
[1746624076054,4.26774179,146.52,146.48,17.51207742]
[1746624076255,6.8242,146.55,146.48,17.51207742]
[1746624076454,4.26207959,146.54,146.48,17.51207742]
[1746624076662,4.26207959,146.53,146.48,17.51207742]
[1746624076961,4.26207959,146.52,146.48,17.51207742]
[1746624077264,6.8237,146.56,146.53,6.8246]
[1746624077458,4.26156728,146.55,146.53,6.8246]
[1746624077657,4.26156728,146.54,146.53,6.8246]
[1746624078563,4.26156728,146.54,146.52,6.8251]
[1746624078761,4.26156728,146.53,146.52,6.8251]
[1746624080463,4.24822901,146.53,146.52,6.8251]
[1746624080657,6.824,146.55,146.52,6.8251]
[1746624080857,4.24823899,146.54,146.52,6.8251]
[1746624081057,4.24823899,146.53,146.52,6.8251]
[1746624082267,4.24967899,146.53,146.52,6.8251]
[1746624083667,4.24967899,146.53,146.51,6.8256]
[1746624083865,28.92,146.58,146.48,6.1394]
[1746624084065,4.2484897,146.57,146.48,6.1394]
[1746624084268,6.8251,146.53,146.5,6.826]
[1746624085267,6.8253,146.52,146.49,6.8263]
[1746624085467,11.37267742,146.57,146.47,28.92]
[1746624085663,10.61864626,146.56,146.47,28.92]
[1746624085868,4.24794626,146.55,146.47,28.92]
[1746624086166,33.16794626,146.54,146.47,28.92]
[1746624086466,4.24794626,146.53,146.47,28.92]
[1746624087067,6.8255,146.52,146.47,28.92]
[1746624087268,4.24794626,146.51,146.47,28.92]
[1746624087468,4.24583109,146.5,146.47,28.92]
[1746624087662,28.92,146.54,146.47,28.92]
[1746624087863,4.24588254,146.53,146.47,35.7474]
[1746624088059,4.24588254,146.52,146.47,35.7474]
[1746624088263,4.24588254,146.51,146.47,35.7474]
[1746624088465,11.07238254,146.5,146.48,6.8271]
[1746624088670,6.8265,146.5,146.48,6.8271]
[1746624088871,6.826,146.51,146.47,28.92]
[1746624089073,4.24476744,146.5,146.49,6.8262]
[1746624089370,6.8256,146.52,146.49,6.8262]
[1746624089572,4.24553448,146.51,146.49,6.8262]
[1746624089768,6.8256,146.52,146.49,6.8262]
[1746624089971,11.07132735,146.51,146.49,6.8262]
[1746624090168,6.8258,146.51,146.49,6.8262]
[1746624090474,4.24462759,146.5,146.47,28.92]
[1746624090673,40.29267742,146.54,146.47,28.92]
[1746624090876,4.23993057,146.53,146.48,6.827]
[1746624091166,4.23993057,146.53,146.47,28.92]
[1746624091167,6.826,146.51,146.47,28.92]
[1746624091373,4.23916449,146.5,146.47,28.92]
[1746624091565,6.826,146.51,146.48,6.8267]
[1746624091767,4.23949595,146.5,146.48,6.8267]
[1746624091968,6.8263,146.5,146.48,6.8267]
[1746624092168,40.29267742,146.54,146.47,28.92]
[1746624092369,4.23959472,146.53,146.47,28.92]
[1746624092570,4.23959472,146.52,146.47,28.92]
[1746624092770,6.8246,146.54,146.48,2.1435]
[1746624092973,4.23702931,146.53,146.48,2.1435]
[1746624093271,6.8246,146.54,146.51,6.8254]
[1746624093466,4.23747028,146.53,146.51,6.8254]
[1746624093668,6.8246,146.54,146.51,6.8254]
[1746624093867,4.23428459,146.53,146.52,6.8253]
[1746624095075,4.23428459,146.53,146.51,6.8255]
[1746624095374,6.8246,146.54,146.51,6.8255]
[1746624095575,11.05137309,146.53,146.51,6.8255]
[1746624095774,4.22527881,146.52,146.51,6.8255]
[1746624095976,4.22527881,146.52,146.5,6.826]
[1746624096174,6.8249,146.53,146.48,2.1435]
[1746624096477,4.2256519,146.52,146.48,2.1435]
[1746624096775,6.8249,146.53,146.48,2.1435]
[1746624096971,4.22635621,146.52,146.48,2.1435]
[1746624097172,6.8249,146.53,146.5,6.8258]
[1746624097368,11.05195115,146.52,146.5,6.8258]
[1746624097569,6.8256,146.52,146.5,6.8258]
[1746624097972,4.23843004,146.51,146.5,6.8258]
[1746624099575,11.06433004,146.51,146.49,6.8265]
[1746624099774,4.24618396,146.5,146.47,28.92]
[1746624099976,6.8259,146.51,146.47,28.92]
[1746624100278,4.24618311,146.5,146.47,28.92]
[1746624100479,40.29267742,146.53,146.47,28.92]
[1746624100675,4.2467443,146.52,146.47,28.92]
[1746624100876,6.827,146.49,146.46,6.8279]
[1746624101382,6.826,146.51,146.44,31.0804]
[1746624101572,4.25167202,146.5,146.44,31.0804]
[1746624101773,4.25167202,146.49,146.48,6.8269]
[1746624101969,4.25167202,146.49,146.44,31.0804]
[1746624102181,6.8255,146.52,146.44,31.0804]
[1746624102479,4.25053278,146.51,146.49,6.8264]
[1746624102680,4.25053278,146.5,146.49,6.8264]
[1746624109089,4.26319464,146.5,146.49,6.8264]
[1746624110986,4.26417862,146.5,146.49,6.8264]
[1746624111288,4.26417862,146.5,146.48,6.827]
[1746624111583,4.26417862,146.49,146.48,6.827]
[1746624111786,4.26417862,146.49,146.44,31.0804]
[1746624111988,4.26417862,146.48,146.47,6.8273]
[1746624112687,4.26682171,146.48,146.47,6.8273]
[1746624113186,11.09412171,146.48,146.46,6.8278]
[1746624113382,4.26682171,146.47,146.46,6.8278]
[1746624115987,6.826,146.51,146.48,6.8269]
[1746624116185,4.26529222,146.5,146.44,31.0804]
[1746624116393,4.26529222,146.49,146.44,31.0804]
[1746624116594,4.26529222,146.48,146.44,31.0804]
[1746624116892,6.8255,146.52,146.44,31.0804]
[1746624117797,6.2877,146.56,146.45,11.37267742]
[1746624117995,4.25821752,146.55,146.45,11.37267742]
[1746624118193,4.25821752,146.54,146.45,11.37267742]
[1746624118391,4.25821752,146.53,146.51,6.8257]
[1746624118588,4.25821752,146.52,146.51,6.8257]
[1746624120800,4.24843976,146.52,146.51,6.8257]
[1746624121101,31.0585,146.56,146.53,6.8248]
[1746624121300,11.07110833,146.55,146.49,28.92]
[1746624121500,28.92,146.56,146.49,31.0741]
[1746624121501,4.24690833,146.54,146.49,31.0741]
[1746624121699,4.24690833,146.53,146.52,6.8253]
[1746624123401,4.24690833,146.53,146.5,6.8258]
[1746624123601,4.24690833,146.52,146.5,6.8258]
[1746624123901,4.24690833,146.51,146.49,35.7465]
[1746624124097,4.24690833,146.5,146.49,35.7465]
[1746624126296,4.25562133,146.5,146.49,35.7465]
[1746624126503,4.25562133,146.5,146.49,28.92]
[1746624126700,4.25562133,146.5,146.48,6.8269]
[1746624126900,4.25562133,146.49,146.48,6.8269]
[1746624128199,40.29267742,146.56,146.49,6.8264]
[1746624128403,6.8254,146.52,146.49,6.8264]
[1746624128605,4.25733485,146.51,146.49,6.8264]
[1746624128805,4.25733485,146.5,146.49,6.8264]
[1746624130107,6.8251,146.53,146.51,6.8257]
[1746624130306,4.26148372,146.52,146.51,6.8257]
[1746624130909,11.08688372,146.52,146.5,6.826]
[1746624131111,4.26148372,146.51,146.5,6.826]
[1746624131814,4.25854273,146.51,146.5,6.826]
[1746624132603,4.26101312,146.51,146.5,6.826]
[1746624133410,4.26003034,146.51,146.5,6.826]
[1746624133601,4.25997307,146.51,146.5,6.826]
[1746624136014,4.25870504,146.51,146.5,6.826]
[1746624137315,4.26031098,146.51,146.5,6.826]
[1746624137618,4.26031098,146.51,146.49,6.8265]
[1746624137816,4.26031098,146.5,146.49,6.8265]
[1746624140016,11.08691098,146.5,146.47,6.8273]
[1746624140318,4.26031098,146.49,146.46,28.92]
[1746624140516,4.26031098,146.48,146.46,35.7479]
[1746624140705,4.26031098,146.47,146.46,28.92]
[1746624141812,4.26031098,146.47,146.45,6.8283]
[1746624142017,4.26031098,146.46,146.43,28.92]
[1746624142320,4.26031098,146.45,146.43,28.92]
[1746624142614,4.26926373,146.44,146.43,28.92]
[1746624143009,4.26926373,146.44,146.43,35.7495]
[1746624144816,6.827,146.49,146.46,6.828]
[1746624145016,4.26582738,146.48,146.46,6.828]
[1746624145316,4.26582738,146.47,146.46,6.828]
[1746624146116,4.26568425,146.47,146.46,6.828]
[1746624149812,4.26477152,146.47,146.46,6.828]
[1746624150219,4.26477152,146.47,146.46,6.8281]
[1746624151225,11.09237152,146.47,146.45,6.8285]
[1746624151523,4.26162435,146.46,146.45,6.8285]
[1746624153319,6.8269,146.49,146.46,6.8278]
[1746624153519,4.25946524,146.48,146.46,6.8278]
[1746624153719,4.25946524,146.47,146.46,6.8278]
[1746624155119,4.2583582,146.47,146.46,6.8278]
[1746624159422,4.2583582,146.47,146.45,6.8283]
[1746624159623,4.2583582,146.46,146.45,6.8283]
[1746624160221,4.2583582,146.46,146.44,14.11359433]
[1746624160417,4.2583582,146.45,146.44,14.11359433]
[1746624160622,4.25679268,146.45,146.44,14.11359433]
[1746624161722,4.25679268,146.45,146.44,6.829]
[1746624162417,4.25810661,146.45,146.44,6.829]
[1746624166917,4.25810661,146.45,146.43,35.7493]
[1746624167113,28.92,146.52,146.43,35.7493]
[1746624167322,4.25843792,146.51,146.43,35.7492]
[1746624167518,4.25843792,146.5,146.43,28.92]
[1746624167716,6.8279,146.47,146.43,28.92]
[1746624167921,4.26248648,146.46,146.43,28.92]
[1746624168121,4.26248648,146.45,146.43,28.92]
[1746624168321,4.26248648,146.44,146.43,35.7495]
[1746624176530,6.8269,146.49,146.46,6.8279]
[1746624176729,4.26074568,146.48,146.46,6.8279]
[1746624176928,4.26074568,146.47,146.46,6.8279]
[1746624177130,4.26074568,146.47,146.45,6.8283]
[1746624177330,4.26074568,146.46,146.45,6.8283]
[1746624178331,4.25360389,146.46,146.45,6.8283]
[1746624178825,4.25360389,146.46,146.44,6.8288]
[1746624179021,4.25360389,146.45,146.44,6.8288]
[1746624183834,4.25360389,146.45,146.44,14.11419514]
[1746624185033,6.8269,146.49,146.47,6.8276]
[1746624185237,4.2500589,146.48,146.44,7.28539514]
[1746624185434,4.2500589,146.47,146.45,6.8286]
[1746624185634,4.2500589,146.46,146.45,6.8286]
[1746624188534,4.25723913,146.46,146.45,6.8286]
[1746624188742,6.8273,146.48,146.45,6.8286]
[1746624189134,4.25720809,146.47,146.45,6.8286]
[1746624189330,4.25720809,146.46,146.45,6.8286]
[1746624189840,4.25748298,146.46,146.45,6.8286]
[1746624190540,6.8273,146.48,146.45,6.8286]
[1746624190744,4.25775792,146.47,146.45,6.8286]
[1746624190937,4.25775792,146.46,146.45,6.8286]
[1746624196941,4.258857,146.46,146.45,6.8286]
[1746624198747,4.258695,146.46,146.45,6.8286]
[1746624200043,13.75819514,146.54,146.5,6.8262]
[1746624200241,13.75819514,146.54,146.48,36.20539514]
[1746624200745,6.825,146.53,146.48,36.20539514]
[1746624200945,6.825,146.53,146.49,6.8264]
[1746624201147,6.825,146.53,146.48,36.20539514]
[1746624201549,6.825,146.53,146.5,6.8262]
[1746624201749,6.8254,146.52,146.5,6.8262]
[1746624202250,6.8254,146.52,146.49,6.8264]
[1746624202952,6.8251,146.53,146.48,36.20539514]
[1746624203147,11.57309514,146.54,146.48,36.20539514]
[1746624203453,2.1945,146.54,146.5,7.28539514]
[1746624203655,6.8241,146.55,146.52,6.8251]
[1746624204957,36.20539514,146.56,146.5,7.28539514]
[1746624205558,7.28539514,146.56,146.5,7.28539514]
[1746624205760,6.8239,146.55,146.53,6.8246]
[1746624211665,14.10909514,146.56,146.53,6.8246]
[1746624211860,6.8237,146.56,146.53,6.8246]
[1746624212162,4.13631082,146.55,146.54,6.8243]
[1746624213063,6.8232,146.57,146.55,6.8239]
[1746624213559,7.28539514,146.58,146.52,36.18539514]
[1746624213757,6.8227,146.58,146.56,6.8231]
[1746624214463,6.8223,146.59,146.57,6.823]
[1746624214664,7.28539514,146.6,146.54,7.28539514]
[1746624214865,6.8228,146.58,146.54,7.28539514]
[1746624215062,7.28539514,146.6,146.54,7.28539514]
[1746624215465,6.8232,146.57,146.54,7.28539514]
[1746624216266,6.8232,146.57,146.54,14.10969514]
[1746624216561,6.8235,146.56,146.54,14.10969514]
[1746624216766,6.8235,146.56,146.54,7.28539514]
[1746624217368,7.28539514,146.6,146.52,36.18539514]
[1746624217567,7.28539514,146.58,146.52,36.18539514]
[1746624218269,6.8243,146.55,146.52,43.01039514]
[1746624218465,6.8243,146.55,146.52,36.18539514]
[1746624219268,6.8243,146.55,146.53,6.8247]
[1746624220472,6.8243,146.55,146.52,43.01049514]
[1746624220964,6.8243,146.55,146.52,36.18539514]
[1746624221162,6.8243,146.55,146.53,6.8247]
[1746624225772,6.8236,146.56,146.53,6.8247]
[1746624226673,6.8236,146.56,146.54,6.8243]
[1746624227272,6.8236,146.56,146.53,6.8246]
[1746624227977,6.8235,146.56,146.54,6.8239]
[1746624228474,6.8232,146.57,146.54,6.8239]
[1746624229777,6.8227,146.58,146.52,36.18539514]
[1746624229969,11.46139514,146.61,146.54,7.28539514]
[1746624230171,4.176,146.61,146.56,7.28539514]
[1746624230371,4.176,146.61,146.56,36.16539514]
[1746624230575,6.8221,146.59,146.57,6.8226]
[1746624230775,4.176,146.61,146.57,6.8226]
[1746624231178,4.176,146.61,146.56,36.16539514]
[1746624231179,6.8218,146.6,146.56,36.16539514]
[1746624231481,7.28539514,146.6,146.56,28.88]
[1746624231676,6.823,146.57,146.56,28.88]
[1746624233380,6.8221,146.59,146.56,28.88]
[1746624233879,7.28539514,146.6,146.56,28.88]
[1746624234379,14.10719514,146.6,146.56,35.7032]
[1746624235181,14.10719514,146.6,146.57,6.8229]
[1746624236279,7.28539514,146.6,146.58,6.8224]
[1746624237281,14.10699514,146.6,146.58,6.8224]
[1746624237881,7.28539514,146.6,146.58,6.8224]
[1746624239675,7.28539514,146.6,146.59,6.822]
[1746624239877,6.8214,146.61,146.59,6.822]
[1746624240181,6.8214,146.61,146.56,28.88]
[1746624240381,6.8214,146.61,146.58,6.8221]
[1746624240983,14.10709514,146.6,146.57,6.8228]
[1746624241382,14.10709514,146.6,146.56,28.88]
[1746624241582,7.28539514,146.6,146.56,28.88]
[1746624242079,6.8223,146.59,146.57,6.823]
[1746624242283,6.8223,146.59,146.56,28.88]
[1746624242483,7.28539514,146.6,146.56,28.88]
[1746624242684,6.8228,146.58,146.55,6.8237]
[1746624244786,6.823,146.57,146.55,6.8237]
[1746624245684,6.8235,146.56,146.54,6.8241]
[1746624247284,7.28539514,146.58,146.53,28.88]
[1746624248289,6.8243,146.55,146.53,28.88]
[1746624249087,6.8243,146.55,146.53,35.7046]
[1746624249889,6.8236,146.56,146.54,6.8244]
[1746624250289,7.28539514,146.58,146.53,28.88]
[1746624250792,7.28539514,146.58,146.53,35.7045]
[1746624251290,6.8239,146.56,146.53,35.7045]
[1746624252689,6.8239,146.55,146.53,35.7045]
[1746624253491,6.8237,146.56,146.53,35.7045]
[1746624254288,6.8239,146.55,146.53,35.7045]
[1746624257292,6.8244,146.54,146.53,28.88]
[1746624257693,10.97904841,146.54,146.53,28.88]
[1746624257895,6.8253,146.52,146.5,35.706]
[1746624258083,4.15464841,146.51,146.5,35.706]
[1746624259296,4.15741053,146.51,146.5,35.706]
[1746624259797,4.15699083,146.51,146.5,35.706]
[1746624260198,4.15705481,146.51,146.5,28.88]
[1746624260499,10.98285481,146.51,146.5,28.88]
[1746624260897,4.15705481,146.51,146.47,618.66]
[1746624261095,4.15705481,146.5,146.47,618.66]
[1746624261296,4.15705481,146.49,146.47,28.88]
[1746624261488,10.98425481,146.48,146.47,28.88]
[1746624262202,4.15705481,146.48,146.47,28.88]
[1746624264298,4.15705481,146.48,146.47,35.7076]
[1746624266401,4.15705481,146.48,146.47,28.88]
[1746624266603,10.98425481,146.48,146.47,28.88]
[1746624266804,4.15705481,146.48,146.47,28.88]
[1746624267301,10.98425481,146.48,146.47,28.88]
[1746624268603,4.15705481,146.48,146.47,35.7076]
[1746624268797,4.15237909,146.48,146.47,35.7076]
[1746624270302,10.97957909,146.48,146.47,28.88]
[1746624270799,4.15237909,146.48,146.44,4.2632]
[1746624271107,7.28539514,146.5,146.44,31.0552]
[1746624271108,4.15036308,146.47,146.44,31.0552]
[1746624271301,7.28539514,146.5,146.44,31.0552]
[1746624271502,6.8276,146.48,146.45,6.8283]
[1746624271703,4.14858101,146.47,146.45,6.8283]
[1746624271903,7.28539514,146.5,146.45,6.8283]
[1746624272100,4.14854745,146.49,146.45,6.8283]
[1746624272400,4.14854745,146.48,146.45,6.8283]
[1746624272600,4.14854745,146.47,146.45,6.8283]
[1746624272798,7.28539514,146.5,146.45,6.8283]
[1746624273001,4.1530413,146.49,146.45,6.8283]
[1746624273201,4.1530413,146.48,146.45,6.8283]
[1746624273404,4.1530413,146.47,146.45,6.8283]
[1746624273609,7.28539514,146.5,146.45,6.8283]
[1746624273807,4.15195903,146.49,146.45,6.8283]
[1746624274107,6.8279,146.47,146.45,6.8283]
[1746624275314,7.28539514,146.5,146.44,37.8839]
[1746624275510,4.15121545,146.49,146.44,37.8839]
[1746624275812,4.15121545,146.48,146.44,37.8839]
[1746624275999,10.98033001,146.47,146.44,37.8839]
[1746624276201,6.8278,146.47,146.44,37.8839]
[1746624277802,6.8278,146.47,146.45,6.8285]
[1746624278002,6.8278,146.47,146.44,31.0552]
[1746624278403,6.8278,146.47,146.44,37.8838]
[1746624278605,6.8278,146.47,146.44,31.0552]
[1746624279012,6.8282,146.46,146.44,37.884]
[1746624281614,6.8279,146.47,146.45,6.8286]
[1746624282114,6.8279,146.47,146.44,37.884]
[1746624282314,6.8281,146.46,146.44,37.884]
[1746624283418,6.8286,146.45,146.44,28.88]
[1746624283711,10.97980891,146.45,146.44,28.88]
[1746624284510,6.8294,146.44,146.41,47.20899514]
[1746624285218,6.8294,146.44,146.42,6.8299]
[1746624285816,6.8294,146.44,146.41,47.20899514]
[1746624286114,7.28539514,146.46,146.41,47.20899514]
[1746624286315,4.15942668,146.45,146.41,47.20899514]
[1746624286514,6.8292,146.44,146.41,47.20899514]
[1746624286916,6.8292,146.44,146.42,6.8299]
[1746624288216,6.8292,146.44,146.41,47.20899514]
[1746624290216,7.28539514,146.46,146.41,47.20899514]
[1746624290412,4.15737348,146.45,146.41,47.20899514]
[1746624290611,7.28539514,146.46,146.41,47.20899514]
[1746624290812,4.15720868,146.45,146.41,47.20899514]
[1746624291014,6.8294,146.44,146.41,47.20899514]
[1746624292113,6.8294,146.44,146.41,40.37879514]
[1746624292318,6.8288,146.45,146.42,6.8296]
[1746624292718,6.8293,146.44,146.42,6.8296]
[1746624293818,6.8287,146.45,146.42,6.8296]
[1746624294318,4.15638512,146.44,146.43,6.8295]
[1746624294515,4.15638512,146.44,146.43,14.11489514]
[1746624294916,4.15638512,146.44,146.43,6.8295]
[1746624295118,4.15638512,146.44,146.43,14.11489514]
[1746624295319,6.8286,146.45,146.43,14.11489514]
[1746624296019,4.15483917,146.44,146.43,14.11489514]
[1746624297420,10.98383917,146.44,146.43,7.28539514]
[1746624297614,4.15483917,146.44,146.41,42.46409514]
[1746624297809,7.28539514,146.46,146.41,38.22639514]
[1746624298014,4.15537885,146.45,146.41,45.05659514]
[1746624298216,4.15537885,146.44,146.41,45.05659514]
[1746624298416,6.8297,146.43,146.41,37.7712]
[1746624298618,6.8297,146.43,146.41,35.7102]
[1746624298817,6.8297,146.43,146.41,28.88]
[1746624299120,6.8293,146.44,146.41,36.16539514]
[1746624299320,4.15924603,146.43,146.41,36.16539514]
[1746624299520,6.8293,146.44,146.42,6.8299]
[1746624299726,4.16427295,146.43,146.42,6.8299]
[1746624300725,4.16632137,146.43,146.42,6.8299]
[1746624301323,6.8293,146.44,146.42,6.8299]
[1746624301522,4.16806881,146.43,146.42,6.8299]
[1746624302227,10.99756881,146.43,146.41,42.99549514]
[1746624302526,4.16806881,146.42,146.41,42.99549514]
[1746624303220,4.16806881,146.43,146.41,42.99549514]
[1746624303426,4.16806881,146.42,146.41,42.99549514]
[1746624303727,4.16806881,146.42,146.41,35.7101]
[1746624305228,10.99806881,146.42,146.41,28.88]
[1746624305622,11.00827029,146.42,146.41,28.88]
[1746624306127,4.17827029,146.42,146.41,28.88]
[1746624306728,11.00827029,146.42,146.41,28.88]
[1746624306929,11.00827029,146.42,146.39,6.8312]
[1746624307130,4.17827029,146.41,146.39,6.8312]
[1746624307324,4.17827029,146.4,146.39,6.8312]
[1746624310836,6.8302,146.42,146.39,6.8312]
[1746624311132,6.8297,146.43,146.4,6.8308]
[1746624311635,6.8301,146.42,146.4,6.8308]
[1746624312131,4.19139805,146.41,146.4,6.8308]
[1746624313935,4.17813403,146.41,146.4,6.8308]
[1746624315432,4.17850251,146.41,146.4,6.8308]
[1746624315835,6.8297,146.43,146.41,6.8304]
[1746624316132,4.17822072,146.42,146.41,6.8304]
[1746624317137,11.00822072,146.42,146.4,6.8307]
[1746624317332,4.17822072,146.41,146.4,6.8307]
[1746624321139,4.1741484,146.41,146.4,6.8307]
[1746624322239,4.17662428,146.41,146.4,6.8307]
[1746624324640,4.1782194,146.41,146.4,6.8307]
[1746624324846,4.1782194,146.41,146.39,6.8311]
[1746624325150,4.1782194,146.4,146.39,6.8311]
[1746624326846,11.0091194,146.4,146.38,42.99699514]
[1746624327046,4.1782194,146.39,146.38,42.99699514]
[1746624329943,7.28539514,146.44,146.39,6.8313]
[1746624330144,4.17199716,146.43,146.38,36.16539514]
[1746624330344,4.17199716,146.42,146.38,36.16539514]
[1746624330544,4.17199716,146.41,146.38,36.16539514]
[1746624330745,11.00309716,146.4,146.38,42.99689514]
[1746624330951,4.17199716,146.39,146.38,42.99689514]
[1746624331157,4.17199716,146.39,146.38,36.16539514]
[1746624331452,4.17199716,146.39,146.38,28.88]
[1746624331946,11.00339716,146.39,146.38,28.88]
[1746624334451,15.32612512,146.39,146.38,28.88]
[1746624335350,6.8321,146.38,146.35,6.833]
[1746624335654,8.49547478,146.39,146.34,28.88]
[1746624335655,4.17274682,146.37,146.34,28.88]
[1746624335852,8.49547478,146.36,146.34,36.16539514]
[1746624336153,4.17274682,146.35,146.34,42.99889514]
[1746624336750,8.49547478,146.35,146.34,42.99889514]
[1746624337856,4.32272796,146.35,146.34,42.99889514]
[1746624338057,28.88,146.42,146.34,36.16539514]
[1746624338255,28.88,146.42,146.37,7.28539514]
[1746624338449,6.8301,146.42,146.37,7.28539514]
[1746624338649,7.28539514,146.43,146.39,6.831]
[1746624338956,11.00301866,146.42,146.39,7.28539514]
[1746624339250,4.17261866,146.41,146.39,14.11649514]
[1746624339454,4.17261866,146.4,146.39,14.11649514]
[1746624340357,4.17261866,146.4,146.39,6.8311]
[1746624341057,4.17287439,146.4,146.39,6.8311]
[1746624342959,4.17319659,146.4,146.39,6.8311]
[1746624343359,4.17319659,146.4,146.38,6.8316]
[1746624343552,4.17348457,146.39,146.38,6.8316]
[1746624344154,6.831,146.4,146.37,6.8321]
[1746624344356,4.17348811,146.39,146.37,6.8321]
[1746624344557,4.17348811,146.38,146.37,6.8321]
[1746624345953,4.17348811,146.38,146.35,2.1559]
[1746624345954,11.00548811,146.38,146.36,6.8325]